[Event "January 9 Early 2024"]
[Site "https://www.chess.com"]
[Date "2024.01.11"]
[Round "6"]
[White "Carre, Sylvain"]
[Black "Tulchynskyi, Feliks"]
[Result "0-1"]
[Board "250"]
[TimeControl "180+1"]
[WhiteFideId "642118"]
[BlackFideId "34127895"]
[WhiteElo "2367"]
[BlackElo "2562"]
[WhiteTeam "FRA"]
[BlackTeam "UKR"]
[WhiteClock "0:00:10"]
[BlackClock "0:00:33"]

1. d4 {[%clk 0:03:00]}  Nf6 {[%clk 0:02:55]} 2. Bf4 {[%clk 0:03:01]}  g6 {[%clk 0:02:51]} 3. e3 {[%clk 0:03:00]}  Bg7 {[%clk 0:02:51]} 4. Be2 {[%clk 0:03:00]}  O-O {[%clk 0:02:51]} 5. Nf3 {[%clk 0:03:00]}  c5 {[%clk 0:02:51]} 6. c3 {[%clk 0:03:00]}  b6 {[%clk 0:02:52]} 7. O-O {[%clk 0:02:57]}  Bb7 {[%clk 0:02:52]} 8. h3 {[%clk 0:02:58]}  d6 {[%clk 0:02:51]} 9. a4 {[%clk 0:02:59]}  a5 {[%clk 0:02:49]} 10. Na3 {[%clk 0:02:58]}  Re8 {[%clk 0:02:48]} 11. Nb5 {[%clk 0:02:59]}  Nc6 {[%clk 0:02:40]} 12. Bh2 {[%clk 0:02:45]}  Qd7 {[%clk 0:02:37]} 13. Re1 {[%clk 0:02:43]}  Rad8 {[%clk 0:02:32]} 14. d5 {[%clk 0:02:34]}  Nb8 {[%clk 0:02:10]} 15. c4 {[%clk 0:02:34]}  Na6 {[%clk 0:02:10]} 16. Bd3 {[%clk 0:02:30]}  Nc7 {[%clk 0:02:09]} 17. e4 {[%clk 0:02:27]}  Nxb5 {[%clk 0:02:08]} 18. axb5 {[%clk 0:02:28]}  e5 {[%clk 0:02:06]} 19. dxe6 {[%clk 0:02:19]}  fxe6 {[%clk 0:02:03]} 20. Bc2 {[%clk 0:02:12]}  e5 {[%clk 0:02:01]} 21. Nd2 {[%clk 0:01:59]}  Rf8 {[%clk 0:01:57]} 22. f3 {[%clk 0:01:59]}  Ne8 {[%clk 0:01:56]} 23. Nf1 {[%clk 0:01:56]}  Nc7 {[%clk 0:01:55]} 24. Ne3 {[%clk 0:01:46]}  Ne6 {[%clk 0:01:55]} 25. Nd5 {[%clk 0:01:45]}  Bxd5 {[%clk 0:01:52]} 26. Qxd5 {[%clk 0:01:44]}  Kh8 {[%clk 0:01:52]} 27. Kh1 {[%clk 0:01:25]}  Nd4 {[%clk 0:01:42]} 28. Bd1 {[%clk 0:01:25]}  Bh6 {[%clk 0:01:40]} 29. Bg1 {[%clk 0:01:20]}  Ne6 {[%clk 0:01:38]} 30. Bh2 {[%clk 0:01:12]}  Bf4 {[%clk 0:01:30]} 31. Bg1 {[%clk 0:01:07]}  Bg3 {[%clk 0:01:28]} 32. Re2 {[%clk 0:01:00]}  Nf4 {[%clk 0:01:24]} 33. Qc6 {[%clk 0:01:00]}  Qxc6 {[%clk 0:01:17]} 34. bxc6 {[%clk 0:01:00]}  Nxe2 {[%clk 0:01:13]} 35. Bxe2 {[%clk 0:01:00]}  Rc8 {[%clk 0:01:13]} 36. Bd1 {[%clk 0:00:37]}  Rxc6 {[%clk 0:01:12]} 37. Ba4 {[%clk 0:00:38]}  Rc7 {[%clk 0:01:12]} 38. b3 {[%clk 0:00:38]}  Kg7 {[%clk 0:01:09]} 39. Rd1 {[%clk 0:00:39]}  Rd8 {[%clk 0:01:08]} 40. Be3 {[%clk 0:00:35]}  Bf4 {[%clk 0:01:08]} 41. Bxf4 {[%clk 0:00:31]}  exf4 {[%clk 0:01:09]} 42. Kg1 {[%clk 0:00:30]}  Kf6 {[%clk 0:01:09]} 43. Kf2 {[%clk 0:00:31]}  Re7 {[%clk 0:01:08]} 44. Ke2 {[%clk 0:00:28]}  Re5 {[%clk 0:01:08]} 45. Kf2 {[%clk 0:00:28]}  Ke7 {[%clk 0:01:08]} 46. Rd2 {[%clk 0:00:28]}  Rg8 {[%clk 0:01:07]} 47. Rd1 {[%clk 0:00:27]}  g5 {[%clk 0:01:05]} 48. g4 {[%clk 0:00:12]}  fxg3+ {[%clk 0:00:49]} 49. Kxg3 {[%clk 0:00:13]}  Rf8 {[%clk 0:00:49]} 50. Bc6 {[%clk 0:00:06]}  h5 {[%clk 0:00:48]} 51. Bd5 {[%clk 0:00:06]}  Rf6 {[%clk 0:00:38]} 52. Rd2 {[%clk 0:00:06]}  Rg6 {[%clk 0:00:37]} 53. Rd1 {[%clk 0:00:06]}  Rg7 {[%clk 0:00:33]} 54. Rd2 {[%clk 0:00:06]}  Kf6 {[%clk 0:00:33]} 55. Rd1 {[%clk 0:00:06]}  Ra7 {[%clk 0:00:33]} 56. Ra1 {[%clk 0:00:05]}  Rxd5 {[%clk 0:00:29]} 57. exd5 {[%clk 0:00:05]}  Ke5 {[%clk 0:00:29]} 58. Re1+ {[%clk 0:00:03]}  Kd4 {[%clk 0:00:29]} 59. Re6 {[%clk 0:00:03]}  Rd7 {[%clk 0:00:29]} 60. Rg6 {[%clk 0:00:03]}  Kc3 {[%clk 0:00:29]} 61. Rxg5 {[%clk 0:00:04]}  Kxb3 {[%clk 0:00:29]} 62. f4 {[%clk 0:00:05]}  a4 {[%clk 0:00:29]} 63. f5 {[%clk 0:00:05]}  a3 {[%clk 0:00:30]} 64. f6 {[%clk 0:00:06]}  Rf7 {[%clk 0:00:29]} 65. Rf5 {[%clk 0:00:05]}  a2 {[%clk 0:00:29]} 66. Rf3+ {[%clk 0:00:06]}  Kxc4 {[%clk 0:00:27]} 67. Rf1 {[%clk 0:00:06]}  Kxd5 {[%clk 0:00:27]} 68. Kh4 {[%clk 0:00:05]}  Rxf6 {[%clk 0:00:27]} 69. Ra1 {[%clk 0:00:04]}  Rf4+ {[%clk 0:00:26]} 70. Kxh5 {[%clk 0:00:04]}  Ra4 {[%clk 0:00:27]} 71. h4 {[%clk 0:00:04]}  Kc4 {[%clk 0:00:27]} 72. Kg5 {[%clk 0:00:05]}  Kb3 {[%clk 0:00:28]} 73. h5 {[%clk 0:00:06]}  Kb2 {[%clk 0:00:28]} 74. Rg1 {[%clk 0:00:06]}  a1=Q {[%clk 0:00:28]} 75. Rxa1 {[%clk 0:00:06]}  Kxa1 {[%clk 0:00:29]} 76. h6 {[%clk 0:00:07]}  d5 {[%clk 0:00:30]} 77. h7 {[%clk 0:00:07]}  Ra8 {[%clk 0:00:30]} 78. Kg6 {[%clk 0:00:08]}  Rh8 {[%clk 0:00:31]} 79. Kg7 {[%clk 0:00:09]}  Rxh7+ {[%clk 0:00:32]} 80. Kxh7 {[%clk 0:00:10]}  d4 {[%clk 0:00:32]} 81. Kg6 {[%clk 0:00:10]}  c4 {[%clk 0:00:33]} 0-1

[Event "January 9 Early 2024"]
[Site "https://www.chess.com"]
[Date "2024.01.11"]
[Round "6"]
[White "Rodriguez Avila, Alvaro"]
[Black "Latreche, Khadidja"]
[Result "1-0"]
[Board "251"]
[TimeControl "180+1"]
[WhiteFideId "24570249"]
[BlackFideId "7901780"]
[WhiteElo "2312"]
[BlackElo "2139"]
[WhiteTeam "ESP"]
[BlackTeam "ALG"]
[WhiteClock "0:00:01"]
[BlackClock "0:00:01"]

1. e4 {[%clk 0:03:00]}  c5 {[%clk 0:02:59]} 2. Nf3 {[%clk 0:03:00]}  e6 {[%clk 0:02:59]} 3. d4 {[%clk 0:02:58]}  cxd4 {[%clk 0:03:00]} 4. Nxd4 {[%clk 0:02:58]}  Nc6 {[%clk 0:03:00]} 5. Nxc6 {[%clk 0:02:57]}  bxc6 {[%clk 0:02:58]} 6. Bd3 {[%clk 0:02:57]}  Nf6 {[%clk 0:02:57]} 7. O-O {[%clk 0:02:55]}  d6 {[%clk 0:02:55]} 8. Qe2 {[%clk 0:02:49]}  Be7 {[%clk 0:02:54]} 9. e5 {[%clk 0:02:48]}  Nd5 {[%clk 0:02:52]} 10. Nd2 {[%clk 0:02:39]}  Qc7 {[%clk 0:02:50]} 11. Nc4 {[%clk 0:02:35]}  dxe5 {[%clk 0:02:35]} 12. Qxe5 {[%clk 0:02:35]}  Qxe5 {[%clk 0:02:30]} 13. Nxe5 {[%clk 0:02:35]}  Bb7 {[%clk 0:02:29]} 14. a3 {[%clk 0:02:33]}  O-O {[%clk 0:02:25]} 15. Re1 {[%clk 0:02:33]}  Bf6 {[%clk 0:02:22]} 16. Nd7 {[%clk 0:02:32]}  Rfd8 {[%clk 0:02:18]} 17. Nxf6+ {[%clk 0:02:32]}  Nxf6 {[%clk 0:02:18]} 18. Bg5 {[%clk 0:02:29]}  Rd7 {[%clk 0:02:14]} 19. Re5 {[%clk 0:02:17]}  Nd5 {[%clk 0:02:11]} 20. Re2 {[%clk 0:02:07]}  f6 {[%clk 0:02:00]} 21. Bd2 {[%clk 0:02:07]}  e5 {[%clk 0:01:55]} 22. f3 {[%clk 0:01:47]}  Rad8 {[%clk 0:01:52]} 23. Kf2 {[%clk 0:01:46]}  g6 {[%clk 0:01:50]} 24. Rae1 {[%clk 0:01:45]}  Kf7 {[%clk 0:01:49]} 25. h4 {[%clk 0:01:44]}  h5 {[%clk 0:01:42]} 26. Ba5 {[%clk 0:01:15]}  Nb6 {[%clk 0:01:39]} 27. Kg3 {[%clk 0:00:44]}  Rc8 {[%clk 0:01:38]} 28. f4 {[%clk 0:00:44]}  exf4+ {[%clk 0:01:31]} 29. Kxf4 {[%clk 0:00:45]}  Nd5+ {[%clk 0:01:21]} 30. Kg3 {[%clk 0:00:43]}  c5 {[%clk 0:01:19]} 31. Bc4 {[%clk 0:00:42]}  Bc6 {[%clk 0:01:03]} 32. Rd2 {[%clk 0:00:38]}  Kg7 {[%clk 0:00:59]} 33. Red1 {[%clk 0:00:37]}  Ne3 {[%clk 0:00:17]} 34. Rxd7+ {[%clk 0:00:36]}  Kf8 {[%clk 0:00:15]} 35. Rd8+ {[%clk 0:00:30]}  Rxd8 {[%clk 0:00:12]} 36. Rxd8+ {[%clk 0:00:31]}  Ke7 {[%clk 0:00:12]} 37. Be2 {[%clk 0:00:26]}  Nxc2 {[%clk 0:00:12]} 38. Rd2 {[%clk 0:00:12]}  Nd4 {[%clk 0:00:12]} 39. Bc3 {[%clk 0:00:12]}  Nf5+ {[%clk 0:00:11]} 40. Kf2 {[%clk 0:00:11]}  Nxh4 {[%clk 0:00:11]} 41. g3 {[%clk 0:00:10]}  Nf5 {[%clk 0:00:10]} 42. Bc4 {[%clk 0:00:10]}  Nd6 {[%clk 0:00:07]} 43. Bd3 {[%clk 0:00:04]}  f5 {[%clk 0:00:06]} 44. Ke3 {[%clk 0:00:03]}  c4 {[%clk 0:00:06]} 45. Bc2 {[%clk 0:00:03]}  Ke6 {[%clk 0:00:04]} 46. Bb4 {[%clk 0:00:03]}  Nf7 {[%clk 0:00:02]} 47. Bc3 {[%clk 0:00:02]}  Bd5 {[%clk 0:00:02]} 48. Kf4 {[%clk 0:00:02]}  g5+ {[%clk 0:00:01]} 49. Ke3 {[%clk 0:00:01]}  Nd6 {[%clk 0:00:01]} 50. Bb4 {[%clk 0:00:01]} 1-0

[Event "January 9 Early 2024"]
[Site "https://www.chess.com"]
[Date "2024.01.11"]
[Round "6"]
[White "Baules Rodriguez, Jorge Luis"]
[Black "Christiansen, Johan-Sebastian"]
[Result "1-0"]
[Board "252"]
[TimeControl "180+1"]
[WhiteFideId "6600247"]
[BlackFideId "1512668"]
[WhiteElo "2610"]
[BlackElo "2880"]
[WhiteTeam "PAN"]
[BlackTeam "NOR"]
[WhiteClock "0:00:14"]
[BlackClock "0:00:06"]

1. e4 {[%clk 0:03:00]}  e5 {[%clk 0:02:56]} 2. Nf3 {[%clk 0:03:00]}  Nc6 {[%clk 0:02:56]} 3. Bb5 {[%clk 0:03:01]}  f5 {[%clk 0:02:56]} 4. Nc3 {[%clk 0:03:00]}  fxe4 {[%clk 0:02:57]} 5. Nxe4 {[%clk 0:03:01]}  d5 {[%clk 0:02:57]} 6. Nxe5 {[%clk 0:03:02]}  dxe4 {[%clk 0:02:58]} 7. Nxc6 {[%clk 0:03:02]}  Qd5 {[%clk 0:02:59]} 8. c4 {[%clk 0:02:55]}  Qd6 {[%clk 0:02:59]} 9. Qh5+ {[%clk 0:02:26]}  g6 {[%clk 0:02:59]} 10. Qe5+ {[%clk 0:02:25]}  Qxe5 {[%clk 0:03:00]} 11. Nxe5+ {[%clk 0:02:26]}  c6 {[%clk 0:03:01]} 12. Ba4 {[%clk 0:02:26]}  Bg7 {[%clk 0:03:01]} 13. d4 {[%clk 0:02:25]}  exd3 {[%clk 0:03:00]} 14. Nxd3 {[%clk 0:02:24]}  Bf5 {[%clk 0:03:01]} 15. Nf4 {[%clk 0:01:53]}  O-O-O {[%clk 0:03:01]} 16. O-O {[%clk 0:01:50]}  Nf6 {[%clk 0:03:01]} 17. h3 {[%clk 0:01:34]}  g5 {[%clk 0:02:50]} 18. g4 {[%clk 0:01:14]}  Bd7 {[%clk 0:02:05]} 19. Ng2 {[%clk 0:01:07]}  h5 {[%clk 0:02:05]} 20. f3 {[%clk 0:01:00]}  hxg4 {[%clk 0:02:05]} 21. hxg4 {[%clk 0:01:01]}  Rh3 {[%clk 0:01:50]} 22. Bxg5 {[%clk 0:00:56]}  Rdh8 {[%clk 0:01:45]} 23. Nf4 {[%clk 0:00:46]}  Rh2 {[%clk 0:01:25]} 24. Nh5 {[%clk 0:00:31]}  R2xh5 {[%clk 0:00:54]} 25. gxh5 {[%clk 0:00:30]}  Rxh5 {[%clk 0:00:52]} 26. Be3 {[%clk 0:00:25]}  Rh3 {[%clk 0:00:28]} 27. Kg2 {[%clk 0:00:20]}  Rh5 {[%clk 0:00:19]} 28. Rh1 {[%clk 0:00:19]}  Re5 {[%clk 0:00:19]} 29. Rae1 {[%clk 0:00:19]}  Ra5 {[%clk 0:00:19]} 30. Bb3 {[%clk 0:00:19]}  Bf5 {[%clk 0:00:18]} 31. Bd4 {[%clk 0:00:19]}  Kd7 {[%clk 0:00:14]} 32. Rhg1 {[%clk 0:00:18]}  Nh5 {[%clk 0:00:09]} 33. Bxg7 {[%clk 0:00:15]}  Nxg7 {[%clk 0:00:10]} 34. Kf2 {[%clk 0:00:16]}  Ne6 {[%clk 0:00:11]} 35. Re2 {[%clk 0:00:14]}  Nf4 {[%clk 0:00:09]} 36. Rd2+ {[%clk 0:00:14]}  Ke7 {[%clk 0:00:08]} 37. Re1+ {[%clk 0:00:14]}  Kf6 {[%clk 0:00:08]} 38. Kg3 {[%clk 0:00:14]}  Nh5+ {[%clk 0:00:06]} 39. Kf2 {[%clk 0:00:14]}  Nf4 {[%clk 0:00:05]} 40. Rd6+ {[%clk 0:00:14]}  Kg7 {[%clk 0:00:03]} 41. Rh1 {[%clk 0:00:11]}  Re5 {[%clk 0:00:03]} 42. Rd2 {[%clk 0:00:11]}  Nd3+ {[%clk 0:00:03]} 43. Kg3 {[%clk 0:00:10]}  Nc5 {[%clk 0:00:03]} 44. Bc2 {[%clk 0:00:10]}  Bxc2 {[%clk 0:00:03]} 45. Rxc2 {[%clk 0:00:11]}  Re3 {[%clk 0:00:04]} 46. Kf2 {[%clk 0:00:11]}  Re6 {[%clk 0:00:04]} 47. Rd1 {[%clk 0:00:10]}  Re7 {[%clk 0:00:04]} 48. b4 {[%clk 0:00:10]}  Na4 {[%clk 0:00:03]} 49. Rd3 {[%clk 0:00:10]}  Nb6 {[%clk 0:00:02]} 50. Re3 {[%clk 0:00:10]}  Rf7 {[%clk 0:00:03]} 51. a3 {[%clk 0:00:08]}  Rf4 {[%clk 0:00:03]} 52. Re4 {[%clk 0:00:08]}  Rf7 {[%clk 0:00:03]} 53. Rd2 {[%clk 0:00:08]}  Nd7 {[%clk 0:00:02]} 54. Rd6 {[%clk 0:00:08]}  Nf6 {[%clk 0:00:02]} 55. Rf4 {[%clk 0:00:08]}  Kg6 {[%clk 0:00:02]} 56. Rfxf6+ {[%clk 0:00:08]}  Rxf6 {[%clk 0:00:02]} 57. Rxf6+ {[%clk 0:00:08]}  Kxf6 {[%clk 0:00:03]} 58. Ke3 {[%clk 0:00:09]}  Ke5 {[%clk 0:00:04]} 59. f4+ {[%clk 0:00:10]}  Kf5 {[%clk 0:00:04]} 60. Kf3 {[%clk 0:00:10]}  b6 {[%clk 0:00:05]} 61. Ke3 {[%clk 0:00:11]}  a6 {[%clk 0:00:04]} 62. Kf3 {[%clk 0:00:11]}  a5 {[%clk 0:00:03]} 63. bxa5 {[%clk 0:00:11]}  bxa5 {[%clk 0:00:04]} 64. Ke3 {[%clk 0:00:11]}  Ke6 {[%clk 0:00:04]} 65. Ke4 {[%clk 0:00:12]}  Kd6 {[%clk 0:00:05]} 66. Kd4 {[%clk 0:00:12]}  c5+ {[%clk 0:00:05]} 67. Ke4 {[%clk 0:00:12]}  Ke6 {[%clk 0:00:05]} 68. f5+ {[%clk 0:00:13]}  Kd6 {[%clk 0:00:06]} 69. Kf4 {[%clk 0:00:12]}  a4 {[%clk 0:00:06]} 70. Ke4 {[%clk 0:00:13]}  Kc6 {[%clk 0:00:06]} 71. Ke5 {[%clk 0:00:14]} 1-0

[Event "January 9 Early 2024"]
[Site "https://www.chess.com"]
[Date "2024.01.11"]
[Round "6"]
[White "Perske, Thore"]
[Black "Pichot, Alan"]
[Result "0-1"]
[Board "255"]
[TimeControl "180+1"]
[WhiteFideId "12902195"]
[BlackFideId "110973"]
[WhiteElo "2646"]
[BlackElo "2830"]
[WhiteTeam "GER"]
[BlackTeam "ESP"]
[WhiteClock "0:00:16"]
[BlackClock "0:00:09"]

1. e4 {[%clk 0:03:00]}  c5 {[%clk 0:02:59]} 2. Nf3 {[%clk 0:03:00]}  e6 {[%clk 0:02:59]} 3. g3 {[%clk 0:02:58]}  Nc6 {[%clk 0:02:58]} 4. Bg2 {[%clk 0:02:58]}  Nf6 {[%clk 0:02:58]} 5. d3 {[%clk 0:02:58]}  d5 {[%clk 0:02:57]} 6. Nbd2 {[%clk 0:02:58]}  Be7 {[%clk 0:02:57]} 7. O-O {[%clk 0:02:57]}  O-O {[%clk 0:02:58]} 8. Re1 {[%clk 0:02:58]}  b5 {[%clk 0:02:58]} 9. e5 {[%clk 0:02:58]}  Nd7 {[%clk 0:02:58]} 10. Nf1 {[%clk 0:02:59]}  a5 {[%clk 0:02:58]} 11. h4 {[%clk 0:02:59]}  Qc7 {[%clk 0:02:58]} 12. Bf4 {[%clk 0:02:58]}  Bb7 {[%clk 0:02:58]} 13. h5 {[%clk 0:02:59]}  h6 {[%clk 0:02:58]} 14. N1h2 {[%clk 0:02:58]}  b4 {[%clk 0:02:57]} 15. Qd2 {[%clk 0:02:56]}  Rfc8 {[%clk 0:02:57]} 16. g4 {[%clk 0:02:55]}  Qd8 {[%clk 0:02:57]} 17. Bh3 {[%clk 0:02:53]}  a4 {[%clk 0:02:37]} 18. a3 {[%clk 0:02:50]}  bxa3 {[%clk 0:02:37]} 19. bxa3 {[%clk 0:02:51]}  Qa5 {[%clk 0:02:18]} 20. Qc1 {[%clk 0:02:48]}  Nd4 {[%clk 0:02:11]} 21. g5 {[%clk 0:02:31]}  hxg5 {[%clk 0:02:05]} 22. Bxg5 {[%clk 0:02:30]}  Qd8 {[%clk 0:01:38]} 23. Bxe7 {[%clk 0:02:21]}  Nxf3+ {[%clk 0:01:35]} 24. Nxf3 {[%clk 0:02:21]}  Qxe7 {[%clk 0:01:36]} 25. h6 {[%clk 0:02:11]}  d4 {[%clk 0:01:35]} 26. Bg2 {[%clk 0:02:01]}  f5 {[%clk 0:01:05]} 27. exf6 {[%clk 0:01:53]}  gxf6 {[%clk 0:01:05]} 28. Qf4 {[%clk 0:01:25]}  Kh8 {[%clk 0:01:05]} 29. Rab1 {[%clk 0:01:22]}  Bc6 {[%clk 0:00:51]} 30. Bh3 {[%clk 0:01:20]}  e5 {[%clk 0:00:45]} 31. Nh4 {[%clk 0:01:10]}  Qf7 {[%clk 0:00:38]} 32. Qf5 {[%clk 0:01:07]}  Rg8+ {[%clk 0:00:38]} 33. Kh2 {[%clk 0:01:06]}  Rg5 {[%clk 0:00:39]} 34. Qe6 {[%clk 0:01:02]}  Qxe6 {[%clk 0:00:33]} 35. Bxe6 {[%clk 0:01:03]}  Re8 {[%clk 0:00:32]} 36. Bxd7 {[%clk 0:00:59]}  Bxd7 {[%clk 0:00:32]} 37. Rb7 {[%clk 0:00:59]}  Be6 {[%clk 0:00:28]} 38. Rg1 {[%clk 0:00:54]}  Rh5 {[%clk 0:00:25]} 39. Kg3 {[%clk 0:00:42]}  Rg8+ {[%clk 0:00:21]} 40. Rg7 {[%clk 0:00:42]}  Rxg7+ {[%clk 0:00:22]} 41. hxg7+ {[%clk 0:00:43]}  Kxg7 {[%clk 0:00:23]} 42. Nf3 {[%clk 0:00:42]}  Rh6 {[%clk 0:00:08]} 43. Rb1 {[%clk 0:00:32]}  Rg6+ {[%clk 0:00:08]} 44. Kh2 {[%clk 0:00:32]}  Bd5 {[%clk 0:00:09]} 45. Ne1 {[%clk 0:00:32]}  f5 {[%clk 0:00:08]} 46. Rb5 {[%clk 0:00:31]}  f4 {[%clk 0:00:07]} 47. f3 {[%clk 0:00:25]}  Rc6 {[%clk 0:00:07]} 48. Kg2 {[%clk 0:00:22]}  Kf6 {[%clk 0:00:07]} 49. Ra5 {[%clk 0:00:23]}  Ke6 {[%clk 0:00:08]} 50. Rxa4 {[%clk 0:00:22]}  c4 {[%clk 0:00:08]} 51. Kf2 {[%clk 0:00:20]}  c3 {[%clk 0:00:07]} 52. Rb4 {[%clk 0:00:19]}  Ra6 {[%clk 0:00:07]} 53. a4 {[%clk 0:00:19]}  Kd6 {[%clk 0:00:08]} 54. Ke2 {[%clk 0:00:15]}  Bc6 {[%clk 0:00:08]} 55. Kd1 {[%clk 0:00:15]}  Bxa4 {[%clk 0:00:07]} 56. Ke2 {[%clk 0:00:15]}  Bc6 {[%clk 0:00:07]} 57. Kd1 {[%clk 0:00:14]}  Ra1+ {[%clk 0:00:07]} 58. Ke2 {[%clk 0:00:15]}  Rc1 {[%clk 0:00:05]} 59. Rc4 {[%clk 0:00:14]}  Bb5 {[%clk 0:00:04]} 60. Rb4 {[%clk 0:00:14]}  Kc5 {[%clk 0:00:05]} 61. Rb3 {[%clk 0:00:13]}  Ba4 {[%clk 0:00:05]} 62. Rb8 {[%clk 0:00:13]}  Bxc2 {[%clk 0:00:05]} 63. Rc8+ {[%clk 0:00:14]}  Kd5 {[%clk 0:00:06]} 64. Rd8+ {[%clk 0:00:14]}  Ke6 {[%clk 0:00:06]} 65. Re8+ {[%clk 0:00:15]}  Kf6 {[%clk 0:00:07]} 66. Rf8+ {[%clk 0:00:15]}  Ke7 {[%clk 0:00:07]} 67. Rf5 {[%clk 0:00:16]}  Bd1+ {[%clk 0:00:07]} 68. Kf2 {[%clk 0:00:15]}  Ke6 {[%clk 0:00:08]} 69. Rf8 {[%clk 0:00:15]}  Ra1 {[%clk 0:00:08]} 70. Rc8 {[%clk 0:00:16]}  Ra2+ {[%clk 0:00:08]} 71. Kf1 {[%clk 0:00:17]}  Be2+ {[%clk 0:00:09]} 72. Kg1 {[%clk 0:00:17]}  Rd2 {[%clk 0:00:09]} 73. Rc7 {[%clk 0:00:16]}  Bxd3 {[%clk 0:00:09]} 0-1

[Event "January 9 Early 2024"]
[Site "https://www.chess.com"]
[Date "2024.01.11"]
[Round "6"]
[White "Shimanov, Aleksandr"]
[Black "Durarbayli, Vasif"]
[Result "0-1"]
[Board "256"]
[TimeControl "180+1"]
[WhiteFideId "4198603"]
[BlackFideId "13402935"]
[WhiteElo "2987"]
[BlackElo "2815"]
[WhiteTeam "RUS"]
[BlackTeam "AZE"]
[WhiteClock "0:00:35"]
[BlackClock "0:00:05"]

1. b3 {[%clk 0:03:00]}  e5 {[%clk 0:02:57]} 2. Bb2 {[%clk 0:03:00]}  Nc6 {[%clk 0:02:56]} 3. e3 {[%clk 0:03:00]}  d5 {[%clk 0:02:57]} 4. Bb5 {[%clk 0:02:59]}  Bd6 {[%clk 0:02:56]} 5. Nf3 {[%clk 0:02:59]}  Qe7 {[%clk 0:02:50]} 6. d4 {[%clk 0:02:58]}  e4 {[%clk 0:02:49]} 7. Nfd2 {[%clk 0:02:58]}  Bd7 {[%clk 0:02:31]} 8. c4 {[%clk 0:02:56]}  Nb4 {[%clk 0:02:29]} 9. Bxd7+ {[%clk 0:02:55]}  Qxd7 {[%clk 0:02:28]} 10. O-O {[%clk 0:02:56]}  c6 {[%clk 0:02:25]} 11. Ba3 {[%clk 0:02:56]}  a5 {[%clk 0:02:17]} 12. Nc3 {[%clk 0:02:56]}  Nf6 {[%clk 0:02:15]} 13. cxd5 {[%clk 0:02:47]}  cxd5 {[%clk 0:02:06]} 14. Bxb4 {[%clk 0:02:46]}  axb4 {[%clk 0:02:06]} 15. Na4 {[%clk 0:02:47]}  Qb5 {[%clk 0:02:00]} 16. Rc1 {[%clk 0:02:32]}  O-O {[%clk 0:01:59]} 17. Re1 {[%clk 0:02:15]}  Rfc8 {[%clk 0:01:55]} 18. Nf1 {[%clk 0:02:15]}  h5 {[%clk 0:01:43]} 19. h3 {[%clk 0:02:14]}  Rc6 {[%clk 0:01:38]} 20. Rxc6 {[%clk 0:02:13]}  Qxc6 {[%clk 0:01:39]} 21. Re2 {[%clk 0:02:13]}  Rc8 {[%clk 0:01:36]} 22. Ng3 {[%clk 0:02:08]}  Qc1 {[%clk 0:01:20]} 23. Re1 {[%clk 0:02:08]}  Qxd1 {[%clk 0:01:07]} 24. Rxd1 {[%clk 0:02:09]}  Bxg3 {[%clk 0:01:07]} 25. fxg3 {[%clk 0:02:09]}  Rc2 {[%clk 0:01:08]} 26. Kf1 {[%clk 0:02:00]}  Ne8 {[%clk 0:00:54]} 27. Nb6 {[%clk 0:01:58]}  Nc7 {[%clk 0:00:49]} 28. Re1 {[%clk 0:01:56]}  Kf8 {[%clk 0:00:28]} 29. Re2 {[%clk 0:01:55]}  Rc6 {[%clk 0:00:23]} 30. Nd7+ {[%clk 0:01:49]}  Ke7 {[%clk 0:00:22]} 31. Nc5 {[%clk 0:01:50]}  b6 {[%clk 0:00:20]} 32. Na4 {[%clk 0:01:50]}  Nb5 {[%clk 0:00:11]} 33. Ke1 {[%clk 0:01:44]}  Kd7 {[%clk 0:00:11]} 34. Rf2 {[%clk 0:01:44]}  Ke6 {[%clk 0:00:11]} 35. Kd2 {[%clk 0:01:41]}  Na3 {[%clk 0:00:11]} 36. Kd1 {[%clk 0:01:41]}  f5 {[%clk 0:00:11]} 37. g4 {[%clk 0:01:40]}  fxg4 {[%clk 0:00:05]} 38. hxg4 {[%clk 0:01:41]}  hxg4 {[%clk 0:00:05]} 39. Rf4 {[%clk 0:01:41]}  g5 {[%clk 0:00:04]} 40. Rf8 {[%clk 0:01:40]}  Nb5 {[%clk 0:00:03]} 41. Re8+ {[%clk 0:01:40]}  Kf6 {[%clk 0:00:03]} 42. Re5 {[%clk 0:01:40]}  Nc3+ {[%clk 0:00:04]} 43. Nxc3 {[%clk 0:01:40]}  Rxc3 {[%clk 0:00:04]} 44. Kd2 {[%clk 0:01:39]}  Rd3+ {[%clk 0:00:05]} 45. Ke2 {[%clk 0:01:40]}  Rc3 {[%clk 0:00:06]} 46. Rxd5 {[%clk 0:01:39]}  Rc2+ {[%clk 0:00:06]} 47. Kf1 {[%clk 0:01:40]}  Rxa2 {[%clk 0:00:05]} 48. g3 {[%clk 0:01:35]}  Rb2 {[%clk 0:00:04]} 49. Rb5 {[%clk 0:01:35]}  Rb1+ {[%clk 0:00:04]} 50. Ke2 {[%clk 0:01:35]}  Rb2+ {[%clk 0:00:05]} 51. Ke1 {[%clk 0:01:35]}  Rb1+ {[%clk 0:00:06]} 52. Kd2 {[%clk 0:01:36]}  Rb2+ {[%clk 0:00:07]} 53. Kd1 {[%clk 0:01:35]}  Rxb3 {[%clk 0:00:07]} 54. Rxb6+ {[%clk 0:01:35]}  Kf5 {[%clk 0:00:08]} 55. Rb5+ {[%clk 0:01:34]}  Kf6 {[%clk 0:00:08]} 56. Kd2 {[%clk 0:01:34]}  Rb2+ {[%clk 0:00:07]} 57. Kd1 {[%clk 0:01:34]}  Rb3 {[%clk 0:00:08]} 58. Rb6+ {[%clk 0:01:29]}  Kf5 {[%clk 0:00:08]} 59. Rb5+ {[%clk 0:01:06]}  Kg6 {[%clk 0:00:08]} 60. Kd2 {[%clk 0:01:01]}  Rb2+ {[%clk 0:00:07]} 61. Ke1 {[%clk 0:01:00]}  b3 {[%clk 0:00:03]} 62. Rb6+ {[%clk 0:00:57]}  Kf5 {[%clk 0:00:04]} 63. Kd1 {[%clk 0:00:56]}  Rb1+ {[%clk 0:00:04]} 64. Kd2 {[%clk 0:00:56]}  Rb2+ {[%clk 0:00:04]} 65. Kd1 {[%clk 0:00:56]}  Rb1+ {[%clk 0:00:02]} 66. Kd2 {[%clk 0:00:56]}  Rb2+ {[%clk 0:00:02]} 67. Kc3 {[%clk 0:00:54]}  Rg2 {[%clk 0:00:03]} 68. Rb5+ {[%clk 0:00:53]}  Ke6 {[%clk 0:00:03]} 69. Re5+ {[%clk 0:00:43]}  Kf6 {[%clk 0:00:03]} 70. Kxb3 {[%clk 0:00:41]}  Rxg3 {[%clk 0:00:04]} 71. Rxe4 {[%clk 0:00:42]}  Rg1 {[%clk 0:00:04]} 72. Kc3 {[%clk 0:00:42]}  g3 {[%clk 0:00:04]} 73. Kd3 {[%clk 0:00:40]}  Kf5 {[%clk 0:00:03]} 74. Re5+ {[%clk 0:00:40]}  Kg4 {[%clk 0:00:04]} 75. Ke2 {[%clk 0:00:38]}  Ra1 {[%clk 0:00:04]} 76. Re4+ {[%clk 0:00:38]}  Kh3 {[%clk 0:00:04]} 77. Re8 {[%clk 0:00:36]}  g2 {[%clk 0:00:04]} 78. Kf3 {[%clk 0:00:36]}  Rf1+ {[%clk 0:00:03]} 79. Ke4 {[%clk 0:00:36]}  g1=Q {[%clk 0:00:04]} 80. Ke5 {[%clk 0:00:36]}  Kg4 {[%clk 0:00:04]} 81. d5 {[%clk 0:00:36]}  Qxe3+ {[%clk 0:00:04]} 82. Kd6 {[%clk 0:00:35]}  Qxe8 {[%clk 0:00:05]} 0-1